[Event "Titled Tuesday Blitz May 24 Late 2022"]
[White "Papp, Petra"]
[Black "Janaszak, Dawid"]
[WhiteFideId "739049"]
[BlackFideId "1119206"]
[WhiteElo "2259"]
[BlackElo "2199"]
[Result "0-1"]
[Round "03"]
[TimeControl "180+1"]
[Date "2022.05.25"]
[WhiteClock "0:00:36"]
[BlackClock "0:00:29"]

1. e4 {[%clk 0:03:00]}  c5 {[%clk 0:02:59]} 2. Nf3 {[%clk 0:03:00]}  Nc6 {[%clk 0:02:58]} 3. d4 {[%clk 0:03:01]}  cxd4 {[%clk 0:02:59]} 4. Nxd4 {[%clk 0:03:01]}  g6 {[%clk 0:02:59]} 5. c4 {[%clk 0:03:01]}  Bg7 {[%clk 0:02:56]} 6. Be3 {[%clk 0:03:01]}  Qb6 {[%clk 0:02:57]} 7. Nb3 {[%clk 0:02:51]}  Qd8 {[%clk 0:02:56]} 8. Nc3 {[%clk 0:02:51]}  Bxc3+ {[%clk 0:02:54]} 9. bxc3 {[%clk 0:02:51]}  d6 {[%clk 0:02:54]} 10. c5 {[%clk 0:02:49]}  Nf6 {[%clk 0:02:46]} 11. f3 {[%clk 0:02:48]}  d5 {[%clk 0:02:46]} 12. exd5 {[%clk 0:02:43]}  Nxd5 {[%clk 0:02:47]} 13. Bd4 {[%clk 0:02:41]}  e5 {[%clk 0:02:42]} 14. Bf2 {[%clk 0:02:38]}  O-O {[%clk 0:02:35]} 15. Bc4 {[%clk 0:02:37]}  Nf4 {[%clk 0:02:26]} 16. Qxd8 {[%clk 0:02:31]}  Rxd8 {[%clk 0:02:27]} 17. O-O {[%clk 0:02:31]}  Be6 {[%clk 0:02:20]} 18. Bb5 {[%clk 0:02:26]}  Ne7 {[%clk 0:02:10]} 19. Rfd1 {[%clk 0:02:23]}  Ned5 {[%clk 0:02:01]} 20. Rac1 {[%clk 0:02:15]}  Nxc3 {[%clk 0:01:48]} 21. Rxd8+ {[%clk 0:02:12]}  Rxd8 {[%clk 0:01:49]} 22. Rxc3 {[%clk 0:01:55]}  Rd1+ {[%clk 0:01:49]} 23. Be1 {[%clk 0:01:55]}  Rxe1+ {[%clk 0:01:47]} 24. Kf2 {[%clk 0:01:55]}  Rb1 {[%clk 0:01:42]} 25. Rc2 {[%clk 0:01:50]}  Bxb3 {[%clk 0:01:33]} 26. axb3 {[%clk 0:01:49]}  Rxb3 {[%clk 0:01:34]} 27. Bf1 {[%clk 0:01:48]}  Kg7 {[%clk 0:01:27]} 28. g3 {[%clk 0:01:41]}  Ne6 {[%clk 0:01:26]} 29. Bc4 {[%clk 0:01:40]}  Rxf3+ {[%clk 0:01:20]} 30. Kxf3 {[%clk 0:01:33]}  Nd4+ {[%clk 0:01:20]} 31. Ke4 {[%clk 0:01:34]}  Nxc2 {[%clk 0:01:21]} 32. Kxe5 {[%clk 0:01:34]}  Ne3 {[%clk 0:01:06]} 33. Bb3 {[%clk 0:01:31]}  f5 {[%clk 0:00:47]} 34. Kd6 {[%clk 0:01:29]}  g5 {[%clk 0:00:47]} 35. Kc7 {[%clk 0:01:23]}  f4 {[%clk 0:00:47]} 36. gxf4 {[%clk 0:01:22]}  gxf4 {[%clk 0:00:48]} 37. Kxb7 {[%clk 0:01:22]}  f3 {[%clk 0:00:48]} 38. c6 {[%clk 0:01:22]}  f2 {[%clk 0:00:48]} 39. c7 {[%clk 0:01:21]}  f1=Q {[%clk 0:00:48]} 40. c8=Q {[%clk 0:01:19]}  Qb5+ {[%clk 0:00:47]} 41. Kxa7 {[%clk 0:01:18]}  Qxb3 {[%clk 0:00:47]} 42. Qh3 {[%clk 0:01:14]}  Qa3+ {[%clk 0:00:46]} 43. Kb7 {[%clk 0:01:13]}  Qe7+ {[%clk 0:00:44]} 44. Kc6 {[%clk 0:01:11]}  Qf6+ {[%clk 0:00:43]} 45. Kb7 {[%clk 0:01:06]}  Nf5 {[%clk 0:00:43]} 46. Qg4+ {[%clk 0:01:03]}  Qg6 {[%clk 0:00:41]} 47. Qf4 {[%clk 0:01:01]}  h5 {[%clk 0:00:39]} 48. Ka8 {[%clk 0:00:53]}  Qf6 {[%clk 0:00:38]} 49. Qc7+ {[%clk 0:00:50]}  Ne7 {[%clk 0:00:37]} 50. Qg3+ {[%clk 0:00:47]}  Kh6 {[%clk 0:00:31]} 51. Qe3+ {[%clk 0:00:47]}  Qg5 {[%clk 0:00:31]} 52. Qe6+ {[%clk 0:00:41]}  Ng6 {[%clk 0:00:31]} 53. h3 {[%clk 0:00:37]}  Qd8+ {[%clk 0:00:29]} 54. Ka7 {[%clk 0:00:36]}  Qe7+ {[%clk 0:00:29]} 0-1


[Site "https://www.chess.com"]

[Event "Titled Tuesday Blitz May 24 Late 2022"]
[White "Pesotskiy, Mikhail"]
[Black "Kaasen, Tor Fredrik"]
[WhiteFideId "34164453"]
[BlackFideId "1516647"]
[WhiteElo "2010"]
[BlackElo "2335"]
[Result "0-1"]
[Round "03"]
[TimeControl "180+1"]
[Date "2022.05.25"]
[WhiteClock "0:00:11"]
[BlackClock "0:00:16"]

1. d4 {[%clk 0:03:00]}  Nf6 {[%clk 0:03:00]} 2. c4 {[%clk 0:03:01]}  c6 {[%clk 0:03:00]} 3. Nf3 {[%clk 0:02:59]}  d5 {[%clk 0:03:00]} 4. Nbd2 {[%clk 0:03:00]}  Bf5 {[%clk 0:02:59]} 5. Nh4 {[%clk 0:03:00]}  Be6 {[%clk 0:02:51]} 6. e3 {[%clk 0:02:59]}  g6 {[%clk 0:02:47]} 7. b3 {[%clk 0:02:58]}  Bg7 {[%clk 0:02:46]} 8. Bb2 {[%clk 0:02:58]}  O-O {[%clk 0:02:47]} 9. Bd3 {[%clk 0:02:58]}  c5 {[%clk 0:02:44]} 10. O-O {[%clk 0:02:56]}  cxd4 {[%clk 0:02:44]} 11. exd4 {[%clk 0:02:57]}  Nc6 {[%clk 0:02:45]} 12. Nhf3 {[%clk 0:02:52]}  Rc8 {[%clk 0:02:38]} 13. Rc1 {[%clk 0:02:50]}  Qa5 {[%clk 0:02:20]} 14. a3 {[%clk 0:02:35]}  Bg4 {[%clk 0:02:13]} 15. h3 {[%clk 0:02:33]}  Bxf3 {[%clk 0:02:13]} 16. Nxf3 {[%clk 0:02:33]}  Qc7 {[%clk 0:01:52]} 17. Qe2 {[%clk 0:02:33]}  e6 {[%clk 0:01:48]} 18. Ne5 {[%clk 0:02:08]}  dxc4 {[%clk 0:01:44]} 19. bxc4 {[%clk 0:02:07]}  Nxe5 {[%clk 0:01:44]} 20. dxe5 {[%clk 0:02:04]}  Nd7 {[%clk 0:01:45]} 21. f4 {[%clk 0:02:01]}  Qb6+ {[%clk 0:01:39]} 22. Kh2 {[%clk 0:01:59]}  Nc5 {[%clk 0:01:39]} 23. Rfd1 {[%clk 0:01:51]}  Nxd3 {[%clk 0:01:33]} 24. Rxd3 {[%clk 0:01:52]}  Rfd8 {[%clk 0:01:33]} 25. c5 {[%clk 0:01:42]}  Qc7 {[%clk 0:01:14]} 26. Rd6 {[%clk 0:01:31]}  Bf8 {[%clk 0:01:13]} 27. Qd3 {[%clk 0:01:12]}  Qa5 {[%clk 0:00:52]} 28. Qd4 {[%clk 0:01:10]}  Re8 {[%clk 0:00:45]} 29. g4 {[%clk 0:00:45]}  Qb5 {[%clk 0:00:44]} 30. Rc2 {[%clk 0:00:44]}  Qb3 {[%clk 0:00:28]} 31. Rd2 {[%clk 0:00:43]}  Qf3 {[%clk 0:00:20]} 32. Rf2 {[%clk 0:00:29]}  Qb3 {[%clk 0:00:18]} 33. Rd2 {[%clk 0:00:25]}  Qb5 {[%clk 0:00:17]} 34. Rc2 {[%clk 0:00:25]}  Rc7 {[%clk 0:00:16]} 35. f5 {[%clk 0:00:23]}  b6 {[%clk 0:00:14]} 36. c6 {[%clk 0:00:20]}  Rec8 {[%clk 0:00:14]} 37. fxe6 {[%clk 0:00:17]}  fxe6 {[%clk 0:00:15]} 38. Rxe6 {[%clk 0:00:16]}  Rxc6 {[%clk 0:00:14]} 39. Rexc6 {[%clk 0:00:17]}  Rxc6 {[%clk 0:00:15]} 40. Rxc6 {[%clk 0:00:18]}  Qxc6 {[%clk 0:00:16]} 41. e6 {[%clk 0:00:13]}  Bd6+ {[%clk 0:00:16]} 42. Kg1 {[%clk 0:00:11]}  Bc5 {[%clk 0:00:16]} 0-1


[Site "https://www.chess.com"]

[Event "Titled Tuesday Blitz May 24 Late 2022"]
[White "Rasulov, Vugar"]
[Black "Hamitevici, Vladimir"]
[WhiteFideId "13402390"]
[BlackFideId "13902393"]
[WhiteElo "2560"]
[BlackElo "2359"]
[Result "1/2-1/2"]
[Round "03"]
[TimeControl "180+1"]
[Date "2022.05.24"]
[WhiteClock "0:00:31"]
[BlackClock "0:00:24"]

1. e4 {[%clk 0:03:00]}  c6 {[%clk 0:02:50]} 2. Nc3 {[%clk 0:02:59]}  d5 {[%clk 0:02:49]} 3. Nf3 {[%clk 0:03:00]}  Bg4 {[%clk 0:02:41]} 4. h3 {[%clk 0:02:59]}  Bxf3 {[%clk 0:02:41]} 5. Qxf3 {[%clk 0:03:00]}  e6 {[%clk 0:02:41]} 6. g3 {[%clk 0:02:59]}  Nf6 {[%clk 0:02:36]} 7. Bg2 {[%clk 0:03:00]}  Bb4 {[%clk 0:02:33]} 8. e5 {[%clk 0:02:47]}  Nfd7 {[%clk 0:02:10]} 9. Qg4 {[%clk 0:02:47]}  Bf8 {[%clk 0:02:05]} 10. f4 {[%clk 0:02:40]}  g6 {[%clk 0:02:05]} 11. O-O {[%clk 0:02:39]}  Na6 {[%clk 0:01:53]} 12. d4 {[%clk 0:02:34]}  Qb6 {[%clk 0:01:44]} 13. Ne2 {[%clk 0:02:28]}  c5 {[%clk 0:01:41]} 14. c3 {[%clk 0:02:20]}  Nab8 {[%clk 0:01:39]} 15. Kh2 {[%clk 0:02:15]}  Nc6 {[%clk 0:01:35]} 16. Rd1 {[%clk 0:02:15]}  cxd4 {[%clk 0:01:17]} 17. cxd4 {[%clk 0:02:14]}  Rc8 {[%clk 0:01:12]} 18. h4 {[%clk 0:02:03]}  h5 {[%clk 0:01:12]} 19. Qf3 {[%clk 0:02:03]}  Ne7 {[%clk 0:01:05]} 20. Bh3 {[%clk 0:01:56]}  Nb8 {[%clk 0:01:02]} 21. b3 {[%clk 0:01:50]}  Nbc6 {[%clk 0:01:01]} 22. Ba3 {[%clk 0:01:43]}  Nf5 {[%clk 0:01:00]} 23. Bxf8 {[%clk 0:01:42]}  Kxf8 {[%clk 0:01:01]} 24. Bxf5 {[%clk 0:01:42]}  gxf5 {[%clk 0:01:02]} 25. Rac1 {[%clk 0:01:37]}  Kg7 {[%clk 0:00:58]} 26. Rc3 {[%clk 0:01:23]}  Kg6 {[%clk 0:00:38]} 27. Rdc1 {[%clk 0:01:18]}  Ne7 {[%clk 0:00:31]} 28. Rxc8 {[%clk 0:01:10]}  Rxc8 {[%clk 0:00:30]} 29. Rxc8 {[%clk 0:01:11]}  Nxc8 {[%clk 0:00:31]} 30. Qc3 {[%clk 0:01:11]}  Qa6 {[%clk 0:00:26]} 31. Nc1 {[%clk 0:00:59]}  Qf1 {[%clk 0:00:22]} 32. Qxc8 {[%clk 0:00:28]}  Qf2+ {[%clk 0:00:22]} 33. Kh1 {[%clk 0:00:29]}  Qf1+ {[%clk 0:00:23]} 34. Kh2 {[%clk 0:00:29]}  Qf2+ {[%clk 0:00:23]} 35. Kh1 {[%clk 0:00:30]}  Qf1+ {[%clk 0:00:24]} 36. Kh2 {[%clk 0:00:31]} 1/2-1/2


[Site "https://www.chess.com"]

[Event "Titled Tuesday Blitz May 24 Late 2022"]
[White "Redor, Menandro"]
[Black "Przybylski, Wojciech"]
[WhiteFideId "5222010"]
[BlackFideId "1117599"]
[WhiteElo "1986"]
[BlackElo "2133"]
[Result "0-1"]
[Round "03"]
[TimeControl "180+1"]
[Date "2022.05.25"]
[WhiteClock "0:00:03"]
[BlackClock "0:00:09"]

1. d4 {[%clk 0:02:55]}  Nf6 {[%clk 0:02:59]} 2. Bf4 {[%clk 0:02:55]}  c5 {[%clk 0:02:55]} 3. c3 {[%clk 0:02:54]}  cxd4 {[%clk 0:02:54]} 4. cxd4 {[%clk 0:02:55]}  Qb6 {[%clk 0:02:53]} 5. Qc2 {[%clk 0:02:45]}  Nc6 {[%clk 0:02:48]} 6. e3 {[%clk 0:02:39]}  Nb4 {[%clk 0:02:47]} 7. Qd2 {[%clk 0:02:34]}  d6 {[%clk 0:02:45]} 8. Nc3 {[%clk 0:02:32]}  Bf5 {[%clk 0:02:44]} 9. Rc1 {[%clk 0:02:27]}  Nbd5 {[%clk 0:02:25]} 10. Bb5+ {[%clk 0:02:17]}  Kd8 {[%clk 0:02:24]} 11. Be2 {[%clk 0:01:21]}  Nxf4 {[%clk 0:02:17]} 12. exf4 {[%clk 0:01:20]}  Rc8 {[%clk 0:02:16]} 13. Nf3 {[%clk 0:01:09]}  h6 {[%clk 0:02:07]} 14. O-O {[%clk 0:01:04]}  g6 {[%clk 0:01:54]} 15. Rfe1 {[%clk 0:00:49]}  Ne4 {[%clk 0:01:51]} 16. Nxe4 {[%clk 0:00:46]}  Bxe4 {[%clk 0:01:52]} 17. Qe3 {[%clk 0:00:34]}  Bd5 {[%clk 0:01:47]} 18. b3 {[%clk 0:00:30]}  a6 {[%clk 0:01:37]} 19. Bc4 {[%clk 0:00:23]}  Bxc4 {[%clk 0:01:21]} 20. bxc4 {[%clk 0:00:23]}  Rc7 {[%clk 0:01:20]} 21. c5 {[%clk 0:00:24]}  Qc6 {[%clk 0:01:03]} 22. cxd6 {[%clk 0:00:19]}  Qxd6 {[%clk 0:01:04]} 23. Ne5 {[%clk 0:00:19]}  Qd5 {[%clk 0:00:53]} 24. Rc5 {[%clk 0:00:15]}  Qe6 {[%clk 0:00:46]} 25. Rec1 {[%clk 0:00:13]}  Rxc5 {[%clk 0:00:44]} 26. Rxc5 {[%clk 0:00:12]}  Bg7 {[%clk 0:00:42]} 27. Qe4 {[%clk 0:00:11]}  Bxe5 {[%clk 0:00:38]} 28. Qxb7 {[%clk 0:00:03]}  Bd6 {[%clk 0:00:09]} 29. Qa8+ {[%clk 0:00:03]}  Kd7 {[%clk 0:00:09]} 30. Qc6+ {[%clk 0:00:04]}  Kd8 {[%clk 0:00:09]} 31. Qa8+ {[%clk 0:00:03]}  Kd7 {[%clk 0:00:10]} 32. Qc6+ {[%clk 0:00:03]}  Kd8 {[%clk 0:00:11]} 33. Qb6+ {[%clk 0:00:03]}  Ke8 {[%clk 0:00:10]} 34. Qc6+ {[%clk 0:00:03]}  Kf8 {[%clk 0:00:10]} 35. d5 {[%clk 0:00:03]}  Qe1# {[%clk 0:00:09]} 0-1


[Site "https://www.chess.com"]

[Event "Titled Tuesday Blitz May 24 Late 2022"]
[White "Rios Escobar, Adan"]
[Black "Galiana Fernandez, Adrian"]
[WhiteFideId "3403645"]
[BlackFideId "32010150"]
[WhiteElo "2462"]
[BlackElo "2133"]
[Result "0-1"]
[Round "03"]
[TimeControl "180+1"]
[Date "2022.05.25"]
[WhiteClock "0:00:11"]
[BlackClock "0:01:17"]

1. d4 {[%clk 0:02:57]}  d5 {[%clk 0:02:58]} 2. Nf3 {[%clk 0:02:55]}  Nf6 {[%clk 0:02:58]} 3. g3 {[%clk 0:02:55]}  Bf5 {[%clk 0:02:54]} 4. c4 {[%clk 0:02:53]}  e6 {[%clk 0:02:53]} 5. Nc3 {[%clk 0:02:51]}  Bb4 {[%clk 0:02:48]} 6. Qa4+ {[%clk 0:02:33]}  Nc6 {[%clk 0:02:46]} 7. Ne5 {[%clk 0:02:33]}  O-O {[%clk 0:02:38]} 8. Nxc6 {[%clk 0:02:18]}  Bxc3+ {[%clk 0:02:37]} 9. bxc3 {[%clk 0:02:18]}  Qd7 {[%clk 0:02:34]} 10. Ba3 {[%clk 0:02:14]}  Rfe8 {[%clk 0:02:32]} 11. Bg2 {[%clk 0:01:48]}  Qxc6 {[%clk 0:02:30]} 12. Qxc6 {[%clk 0:01:45]}  bxc6 {[%clk 0:02:31]} 13. O-O {[%clk 0:01:37]}  Rab8 {[%clk 0:02:30]} 14. Bc5 {[%clk 0:01:34]}  a6 {[%clk 0:02:29]} 15. Ba3 {[%clk 0:01:28]}  Ne4 {[%clk 0:02:27]} 16. Bxe4 {[%clk 0:01:16]}  Bxe4 {[%clk 0:02:26]} 17. f3 {[%clk 0:01:15]}  Bg6 {[%clk 0:02:26]} 18. Rfe1 {[%clk 0:01:11]}  e5 {[%clk 0:02:19]} 19. Kf2 {[%clk 0:00:56]}  e4 {[%clk 0:02:16]} 20. f4 {[%clk 0:00:46]}  e3+ {[%clk 0:02:13]} 21. Kf3 {[%clk 0:00:44]}  h5 {[%clk 0:02:11]} 22. cxd5 {[%clk 0:00:40]}  cxd5 {[%clk 0:02:08]} 23. Bc1 {[%clk 0:00:33]}  Re6 {[%clk 0:01:46]} 24. Bxe3 {[%clk 0:00:30]}  Be4+ {[%clk 0:01:45]} 25. Kf2 {[%clk 0:00:30]}  Rb2 {[%clk 0:01:45]} 26. Rec1 {[%clk 0:00:19]}  Bd3 {[%clk 0:01:43]} 27. Re1 {[%clk 0:00:18]}  g6 {[%clk 0:01:37]} 28. Kf3 {[%clk 0:00:18]}  Be4+ {[%clk 0:01:37]} 29. Kf2 {[%clk 0:00:19]}  Bd3 {[%clk 0:01:37]} 30. Rad1 {[%clk 0:00:18]}  Bc4 {[%clk 0:01:34]} 31. Rd2 {[%clk 0:00:17]}  Rxd2 {[%clk 0:01:33]} 32. Bxd2 {[%clk 0:00:18]}  Bxa2 {[%clk 0:01:33]} 33. Ra1 {[%clk 0:00:18]}  Bc4 {[%clk 0:01:33]} 34. Ra5 {[%clk 0:00:19]}  Rxe2+ {[%clk 0:01:33]} 35. Kf3 {[%clk 0:00:18]}  Rxd2 {[%clk 0:01:33]} 36. h3 {[%clk 0:00:19]}  Rd3+ {[%clk 0:01:32]} 37. Kf2 {[%clk 0:00:19]}  Rxc3 {[%clk 0:01:33]} 38. f5 {[%clk 0:00:19]}  gxf5 {[%clk 0:01:33]} 39. Rc5 {[%clk 0:00:18]}  Rd3 {[%clk 0:01:32]} 40. Rxc7 {[%clk 0:00:18]}  Rxd4 {[%clk 0:01:32]} 41. Ke3 {[%clk 0:00:17]}  Re4+ {[%clk 0:01:32]} 42. Kf3 {[%clk 0:00:17]}  Kg7 {[%clk 0:01:31]} 43. g4 {[%clk 0:00:17]}  hxg4+ {[%clk 0:01:31]} 44. hxg4 {[%clk 0:00:18]}  Rxg4 {[%clk 0:01:31]} 45. Ke3 {[%clk 0:00:15]}  Re4+ {[%clk 0:01:29]} 46. Kf3 {[%clk 0:00:16]}  Kf6 {[%clk 0:01:28]} 47. Kg3 {[%clk 0:00:16]}  f4+ {[%clk 0:01:25]} 48. Kf3 {[%clk 0:00:15]}  Be2+ {[%clk 0:01:25]} 49. Kf2 {[%clk 0:00:15]}  Ke5 {[%clk 0:01:24]} 50. Rxf7 {[%clk 0:00:14]}  Kd4 {[%clk 0:01:24]} 51. Rb7 {[%clk 0:00:12]}  Bc4 {[%clk 0:01:20]} 52. Rc7 {[%clk 0:00:10]}  Re3 {[%clk 0:01:18]} 53. Rf7 {[%clk 0:00:09]}  Re4 {[%clk 0:01:18]} 54. Rf6 {[%clk 0:00:09]}  a5 {[%clk 0:01:17]} 55. Rf8 {[%clk 0:00:07]}  a4 {[%clk 0:01:16]} 56. Ra8 {[%clk 0:00:08]}  Bb3 {[%clk 0:01:16]} 57. Rb8 {[%clk 0:00:07]}  Kc3 {[%clk 0:01:16]} 58. Rc8+ {[%clk 0:00:07]}  Kb2 {[%clk 0:01:15]} 59. Ra8 {[%clk 0:00:08]}  a3 {[%clk 0:01:15]} 60. Rh8 {[%clk 0:00:03]}  a2 {[%clk 0:01:15]} 61. Ra8 {[%clk 0:00:04]}  a1=Q {[%clk 0:01:15]} 62. Rxa1 {[%clk 0:00:03]}  Kxa1 {[%clk 0:01:15]} 63. Kf3 {[%clk 0:00:04]}  Ka2 {[%clk 0:01:16]} 64. Kg4 {[%clk 0:00:04]}  Kb2 {[%clk 0:01:16]} 65. Kf3 {[%clk 0:00:05]}  Kc3 {[%clk 0:01:16]} 66. Kg4 {[%clk 0:00:06]}  Kd4 {[%clk 0:01:17]} 67. Kf3 {[%clk 0:00:06]}  Ke5 {[%clk 0:01:16]} 68. Kf2 {[%clk 0:00:07]}  Re3 {[%clk 0:01:17]} 69. Kg1 {[%clk 0:00:08]}  f3 {[%clk 0:01:16]} 70. Kf1 {[%clk 0:00:09]}  Kf4 {[%clk 0:01:16]} 71. Kf2 {[%clk 0:00:10]}  Re2+ {[%clk 0:01:17]} 72. Kf1 {[%clk 0:00:10]}  Kg3 {[%clk 0:01:16]} 73. Kg1 {[%clk 0:00:11]}  Re1# {[%clk 0:01:17]} 0-1


[Site "https://www.chess.com"]

[Event "Titled Tuesday Blitz May 24 Late 2022"]
[White "Sailer, Mike"]
[Black "Lopez Gracia, Fernando"]
[WhiteFideId "2012901"]
[BlackFideId "2207184"]
[WhiteElo "2109"]
[BlackElo "2405"]
[Result "0-1"]
[Round "03"]
[TimeControl "180+1"]
[Date "2022.05.25"]
[WhiteClock "0:00:03"]
[BlackClock "0:01:22"]

1. d4 {[%clk 0:03:00]}  Nf6 {[%clk 0:03:00]} 2. Nf3 {[%clk 0:03:00]}  e6 {[%clk 0:03:00]} 3. Bf4 {[%clk 0:03:01]}  c5 {[%clk 0:03:00]} 4. e3 {[%clk 0:03:01]}  b6 {[%clk 0:03:01]} 5. Bd3 {[%clk 0:02:58]}  Bb7 {[%clk 0:03:01]} 6. O-O {[%clk 0:02:58]}  Be7 {[%clk 0:03:02]} 7. h3 {[%clk 0:02:59]}  O-O {[%clk 0:03:02]} 8. c3 {[%clk 0:02:58]}  d6 {[%clk 0:03:00]} 9. Nbd2 {[%clk 0:02:56]}  cxd4 {[%clk 0:03:00]} 10. exd4 {[%clk 0:02:57]}  Nbd7 {[%clk 0:03:00]} 11. a4 {[%clk 0:02:54]}  Re8 {[%clk 0:03:00]} 12. a5 {[%clk 0:02:54]}  a6 {[%clk 0:02:56]} 13. axb6 {[%clk 0:02:53]}  Qxb6 {[%clk 0:02:51]} 14. Nc4 {[%clk 0:02:52]}  Qc7 {[%clk 0:02:52]} 15. Na5 {[%clk 0:02:51]}  Bf8 {[%clk 0:02:49]} 16. Nxb7 {[%clk 0:02:41]}  Qxb7 {[%clk 0:02:50]} 17. Qc2 {[%clk 0:02:40]}  e5 {[%clk 0:02:48]} 18. dxe5 {[%clk 0:02:10]}  dxe5 {[%clk 0:02:49]} 19. Bg5 {[%clk 0:01:04]}  e4 {[%clk 0:02:46]} 20. Bxa6 {[%clk 0:00:59]}  Rxa6 {[%clk 0:02:45]} 21. Rxa6 {[%clk 0:00:59]}  Qxa6 {[%clk 0:02:44]} 22. Nd4 {[%clk 0:00:59]}  h6 {[%clk 0:02:43]} 23. Bh4 {[%clk 0:00:44]}  Bd6 {[%clk 0:02:38]} 24. Nf5 {[%clk 0:00:34]}  Bb8 {[%clk 0:02:38]} 25. c4 {[%clk 0:00:18]}  Qe6 {[%clk 0:02:38]} 26. Ne3 {[%clk 0:00:11]}  g5 {[%clk 0:02:32]} 27. Bg3 {[%clk 0:00:11]}  Ne5 {[%clk 0:02:28]} 28. Rd1 {[%clk 0:00:06]}  Nd3 {[%clk 0:02:28]} 29. b3 {[%clk 0:00:06]}  Bxg3 {[%clk 0:02:26]} 30. fxg3 {[%clk 0:00:06]}  Qb6 {[%clk 0:02:26]} 31. Qe2 {[%clk 0:00:04]}  Nc5 {[%clk 0:02:14]} 32. Kh2 {[%clk 0:00:05]}  Qe6 {[%clk 0:02:10]} 33. Rf1 {[%clk 0:00:05]}  Kh7 {[%clk 0:02:02]} 34. Nf5 {[%clk 0:00:06]}  Ng8 {[%clk 0:01:56]} 35. b4 {[%clk 0:00:05]}  Nd3 {[%clk 0:01:55]} 36. b5 {[%clk 0:00:05]}  Ne7 {[%clk 0:01:55]} 37. g4 {[%clk 0:00:04]}  Nxf5 {[%clk 0:01:53]} 38. gxf5 {[%clk 0:00:03]}  Qe5+ {[%clk 0:01:53]} 39. Kh1 {[%clk 0:00:03]}  Nf4 {[%clk 0:01:49]} 40. Qg4 {[%clk 0:00:03]}  f6 {[%clk 0:01:47]} 41. h4 {[%clk 0:00:02]}  h5 {[%clk 0:01:46]} 42. Qd1 {[%clk 0:00:02]}  Qb2 {[%clk 0:01:45]} 43. Qd7+ {[%clk 0:00:03]}  Kh6 {[%clk 0:01:39]} 44. hxg5+ {[%clk 0:00:03]}  fxg5 {[%clk 0:01:34]} 45. Rxf4 {[%clk 0:00:04]}  Qc1+ {[%clk 0:01:32]} 46. Kh2 {[%clk 0:00:04]}  Qxf4+ {[%clk 0:01:32]} 47. Kh1 {[%clk 0:00:05]}  Qe5 {[%clk 0:01:25]} 48. Qc6+ {[%clk 0:00:04]}  Kg7 {[%clk 0:01:25]} 49. Qd7+ {[%clk 0:00:05]}  Re7 {[%clk 0:01:24]} 50. Qc8 {[%clk 0:00:05]}  e3 {[%clk 0:01:23]} 51. f6+ {[%clk 0:00:03]}  Qxf6 {[%clk 0:01:22]} 0-1


[Site "https://www.chess.com"]

[Event "Titled Tuesday Blitz May 24 Late 2022"]
[White "Sanchez, Robert"]
[Black "Francisco Guecamburu, Candela Be"]
[WhiteFideId "2034360"]
[BlackFideId "160911"]
[WhiteElo "2265"]
[BlackElo "1847"]
[Result "1-0"]
[Round "03"]
[TimeControl "180+1"]
[Date "2022.05.25"]
[WhiteClock "0:00:09"]
[BlackClock "0:00:57"]

1. e4 {[%clk 0:03:00]}  c5 {[%clk 0:02:59]} 2. Nf3 {[%clk 0:03:01]}  g6 {[%clk 0:03:00]} 3. d4 {[%clk 0:03:01]}  cxd4 {[%clk 0:03:01]} 4. Nxd4 {[%clk 0:03:02]}  Bg7 {[%clk 0:03:01]} 5. Nc3 {[%clk 0:03:02]}  Nc6 {[%clk 0:03:01]} 6. Be3 {[%clk 0:03:02]}  Nf6 {[%clk 0:03:02]} 7. Bc4 {[%clk 0:03:02]}  O-O {[%clk 0:03:02]} 8. Bb3 {[%clk 0:03:03]}  a5 {[%clk 0:03:03]} 9. a4 {[%clk 0:03:02]}  Ng4 {[%clk 0:03:02]} 10. Qxg4 {[%clk 0:02:56]}  Nxd4 {[%clk 0:03:02]} 11. Qd1 {[%clk 0:02:54]}  Nxb3 {[%clk 0:03:02]} 12. cxb3 {[%clk 0:02:54]}  d6 {[%clk 0:03:03]} 13. O-O {[%clk 0:02:54]}  Be6 {[%clk 0:02:59]} 14. f4 {[%clk 0:02:48]}  Rc8 {[%clk 0:02:55]} 15. f5 {[%clk 0:02:46]}  Bd7 {[%clk 0:02:54]} 16. Nd5 {[%clk 0:02:42]}  Bc6 {[%clk 0:02:46]} 17. Bb6 {[%clk 0:02:29]}  Qd7 {[%clk 0:02:43]} 18. f6 {[%clk 0:02:21]}  exf6 {[%clk 0:02:37]} 19. Nxf6+ {[%clk 0:02:21]}  Bxf6 {[%clk 0:02:37]} 20. Rxf6 {[%clk 0:02:22]}  Bxe4 {[%clk 0:02:32]} 21. Rxd6 {[%clk 0:02:08]}  Qf5 {[%clk 0:02:30]} 22. Qf1 {[%clk 0:01:55]}  Qe5 {[%clk 0:02:24]} 23. Rad1 {[%clk 0:01:51]}  Rc2 {[%clk 0:02:15]} 24. R6d2 {[%clk 0:01:32]}  Rc6 {[%clk 0:01:46]} 25. Bd4 {[%clk 0:01:29]}  Qg5 {[%clk 0:01:46]} 26. Bc3 {[%clk 0:01:25]}  h5 {[%clk 0:01:39]} 27. Qf2 {[%clk 0:01:20]}  h4 {[%clk 0:01:37]} 28. h3 {[%clk 0:01:01]}  Bf5 {[%clk 0:01:27]} 29. Qd4 {[%clk 0:00:48]}  f6 {[%clk 0:01:23]} 30. Qd5+ {[%clk 0:00:42]}  Kh8 {[%clk 0:01:18]} 31. Re2 {[%clk 0:00:33]}  Qg3 {[%clk 0:01:09]} 32. Kh1 {[%clk 0:00:17]}  Rfc8 {[%clk 0:01:03]} 33. Qf7 {[%clk 0:00:12]}  Rxc3 {[%clk 0:00:58]} 34. bxc3 {[%clk 0:00:10]}  Qxc3 {[%clk 0:00:57]} 35. Re7 {[%clk 0:00:09]} 1-0


[Site "https://www.chess.com"]